fUST/lending_fUST_20240521
["ID","MTS","AMOUNT","RATE_DAILY","PERIOD"]
[327578763,1716241850340,-1161.19,0.00043835,40]
[327578764,1716241850349,-500.0,0.00043835,40]
[327578765,1716241850359,-1677.13,0.00043835,40]
[327578766,1716241850368,-500.0,0.00043835,40]
[327578767,1716241850377,-500.0,0.00043835,40]
[327578768,1716241850387,-500.0,0.00043835,40]
[327578769,1716241850396,-500.0,0.00043835,40]
[327578770,1716241850407,-500.0,0.00043835,40]
[327578771,1716241850417,-506.35662925,0.00043835,40]
[327578772,1716241850426,-500.0,0.00043835,40]
[327578773,1716241850436,-501.55370852,0.00043835,20]
[327578774,1716241850446,-500.0,0.00043835,40]
[327578775,1716241850455,-500.0,0.00043835,40]
[327578776,1716241850466,-513.52095829,0.00043835,40]
[327578777,1716241850475,-502.92061456,0.00043835,40]
[327578778,1716241850485,-500.0,0.00043835,40]
[327578779,1716241850494,-505.37848086,0.00043835,40]
[327578780,1716241850504,-501.72841346,0.00043835,40]
[327578781,1716241850513,-500.0,0.00043835,40]
[327578782,1716241850522,-751.84,0.00043835,40]
[327578783,1716241850532,-506.16242033,0.00043835,40]
[327578784,1716241850541,-500.0,0.00043835,40]
[327578785,1716241850550,-174.58592822,0.00043835,40]
[327578786,1716241850560,-500.0,0.00043835,40]
[327578787,1716241850569,-1401.9,0.00043835,40]
[327578788,1716241850578,-500.0,0.00043835,40]
[327578789,1716241850587,-522.84123545,0.00043835,40]
[327578790,1716241850597,-500.0,0.00043835,40]
[327578791,1716241850607,-877.29,0.00043835,40]
[327578792,1716241850616,-500.0,0.00043835,40]
[327578793,1716241850626,-503.35043403,0.00043835,40]
[327578794,1716241850635,-547.74,0.00043835,40]
[327578795,1716241850645,-500.0,0.00043835,40]
[327578796,1716241850663,-854.32,0.00043835,40]
[327578797,1716241850673,-500.0,0.00043835,40]
[327578798,1716241850685,-500.0,0.00043835,40]
[327578799,1716241850695,-1000.0,0.00043835,40]
[327578800,1716241850704,-500.0,0.00043835,40]
[327578801,1716241850713,-502.69196102,0.00043835,40]
[327578802,1716241850724,-500.0,0.00043835,40]
[327578803,1716241850735,-500.0,0.00043835,40]
[327578804,1716241850746,-513.95,0.00043835,40]
[327578805,1716241850755,-500.0,0.00043835,40]
[327578806,1716241850770,-500.0,0.00043835,40]
[327578807,1716241850780,-500.0,0.00043835,40]
[327578808,1716241850790,-500.0,0.00043835,40]
[327578809,1716241850800,-500.0,0.00043835,40]
[327578810,1716241850810,-502.92127346,0.00043835,40]
[327578811,1716241850820,-500.0,0.00043835,40]
[327578812,1716241850829,-500.0,0.00043835,40]
[327578813,1716241850839,-504.29783254,0.00043835,40]
[327578814,1716241850849,-500.0,0.00043835,40]
[327578815,1716241850858,-552.8,0.00043835,40]
[327578816,1716241850867,-500.0,0.00043835,40]
[327578817,1716241850877,-500.0,0.00043835,40]
[327578818,1716241850887,-556.93,0.00043835,40]
[327578819,1716241850897,-913.54,0.00043835,40]
[327578820,1716241850907,-500.0,0.00043835,40]
[327578821,1716241850917,-500.0,0.00043835,40]
[327578822,1716241850926,-500.0,0.00043835,40]
[327578823,1716241850935,-500.0,0.00043835,40]
[327578824,1716241850946,-1000.0,0.00043835,40]
[327578825,1716241850955,-500.0,0.00043835,40]
[327578826,1716241850965,-500.0,0.00043835,40]
[327578827,1716241850976,-500.0,0.00043835,40]
[327578828,1716241850985,-500.0,0.00043835,40]
[327578829,1716241850994,-500.0,0.00043835,40]
[327578830,1716241851003,-913.09,0.00043835,40]
[327578831,1716241851013,-500.0,0.00043835,40]
[327578832,1716241851022,-500.0,0.00043835,40]
[327578833,1716241851031,-500.0,0.00043835,40]
[327578834,1716241851040,-500.0,0.00043835,40]
[327578835,1716241851049,-373.81248471,0.00043835,2]
[327578836,1716241851059,-500.0,0.00043835,40]
[327578837,1716241851068,-1073.49,0.00043835,40]
[327578838,1716241851077,-431.92768758,0.00043835,40]
[327578839,1716241851087,-500.0,0.00043835,40]
[327578840,1716241851096,-1070.33,0.00043835,40]
[327578841,1716241851105,-502.26516611,0.00043835,40]
[327578842,1716241851114,-503.95811613,0.00043835,40]
[327578843,1716241851124,-500.0,0.00043835,40]
[327578844,1716241851134,-504.73464007,0.00043835,40]
[327578845,1716241851144,-1360.22,0.00043835,40]
[327578846,1716241851153,-1404.44,0.00043835,40]
[327578847,1716241851163,-500.0,0.00043835,40]
[327578848,1716241851172,-509.89495465,0.00043835,40]
[327578849,1716241851182,-500.0,0.00043835,40]
[327578850,1716241851191,-500.0,0.00043835,40]
[327578851,1716241851201,-351.28916746,0.00043835,40]
[327578852,1716241851211,-709.59,0.00043835,40]
[327578853,1716241851222,-1279.17,0.00043835,40]
[327578854,1716241851232,-500.0,0.00043835,40]
[327578855,1716241851241,-1101.89,0.00043835,40]
[327578856,1716241851251,-500.0,0.00043835,40]
[327578857,1716241851261,-500.0,0.00043835,40]
[327578858,1716241851270,-500.0,0.00043835,40]
[327578859,1716241851280,-500.0,0.00043835,40]
[327578860,1716241851290,-503.98818823,0.00043835,40]
[327578861,1716241851299,-500.0,0.00043835,40]
[327578862,1716241851309,-500.0,0.00043835,40]
[327578863,1716241851319,-504.21809198,0.00043835,40]
[327578864,1716241851328,-414.37852674,0.00043835,40]
[327578865,1716241851338,-500.0,0.00043835,40]
[327578866,1716241851347,-500.0,0.00043835,40]
[327578867,1716241851356,-615.77,0.00043835,40]
[327578868,1716241851366,-1084.47,0.00043835,40]
[327578869,1716241851375,-500.0,0.00043835,40]
[327578870,1716241851385,-500.0,0.00043835,40]
[327578871,1716241851394,-500.0,0.00043835,40]
[327578872,1716241851404,-708.39,0.00043835,40]
[327578873,1716241851415,-500.0,0.00043835,40]
[327578874,1716241851424,-500.0,0.00043835,40]
[327578875,1716241851435,-1089.48,0.00043835,2]
[327578876,1716241851444,-500.0,0.00043835,40]
[327578877,1716241851453,-601.12,0.00043835,40]
[327578878,1716241851463,-840.26,0.00043835,40]
[327578879,1716241851474,-1434.41,0.00043835,40]
[327578880,1716241851484,-500.0,0.00043835,40]
[327578881,1716241851493,-500.0,0.00043835,40]
[327578882,1716241851503,-643.2,0.00043835,40]
[327578883,1716241851514,-502.563173,0.00043835,40]
[327578884,1716241851524,-500.0,0.00043835,40]
[327578885,1716241851534,-663.84,0.00043835,40]
[327578886,1716241851543,-1120.97,0.00043835,40]
[327578887,1716241851554,-500.0,0.00043835,40]
[327578888,1716241851565,-503.3981969,0.00043835,40]
[327578889,1716241851574,-503.90909712,0.00043835,40]
[327578890,1716241851583,-500.0,0.00043835,40]
[327578891,1716241851593,-503.8313222,0.00043835,40]
[327578892,1716241851603,-502.36816493,0.00043835,40]
[327578893,1716241851612,-500.0,0.00043835,40]
[327578894,1716241851622,-500.0,0.00043835,40]
[327578895,1716241851632,-500.0,0.00043835,40]
[327578896,1716241851642,-819.96,0.00043835,40]
[327578897,1716241851654,-831.58,0.00043835,40]
[327578898,1716241851664,-500.0,0.00043835,40]
[327578899,1716241851676,-562.15,0.00043835,40]
[327578900,1716241851686,-500.0,0.00043835,40]
[327578901,1716241851696,-500.0,0.00043835,40]
[327578902,1716241851705,-500.0,0.00043835,40]
[327578903,1716241851715,-718.07,0.00043835,40]
[327578904,1716241851726,-500.0,0.00043835,40]
[327578905,1716241851735,-503.18650572,0.00043835,40]
[327578906,1716241851746,-168.30792774,0.00043835,40]
[327578907,1716241851757,-500.0,0.00043835,40]
[327578908,1716241851766,-644.51,0.00043835,40]
[327578909,1716241851775,-500.0,0.00043835,40]
[327578910,1716241851784,-500.0,0.00043835,40]
[327578911,1716241851794,-500.0,0.00043835,40]
[327578912,1716241851803,-500.0,0.00043835,40]
[327578913,1716241851813,-501.54494569,0.00043835,40]
[327578914,1716241851822,-548.26,0.00043835,40]
[327578915,1716241851832,-500.0,0.00043835,40]
[327578916,1716241851841,-500.0,0.00043835,40]
[327578917,1716241851851,-504.8467975,0.00043835,40]
[327578918,1716241851860,-1008.27,0.00043835,40]
[327578919,1716241851869,-500.0,0.00043835,40]
[327578920,1716241851879,-504.17989085,0.00043835,40]
[327578921,1716241851888,-1502.71,0.00043835,40]
[327578922,1716241851898,-500.0,0.00043835,40]
[327578923,1716241851908,-500.0,0.00043835,40]
[327578924,1716241851918,-500.0,0.00043835,40]
[327578925,1716241851927,-762.33,0.00043835,40]
[327578926,1716241851938,-762.33,0.00043835,41]
[327578927,1716241851948,-762.33,0.00043835,42]
[327578928,1716241851958,-762.33,0.00043835,43]
[327578929,1716241851967,-762.33,0.00043835,44]
[327578930,1716241851977,-774.83,0.00043835,40]
[327578931,1716241851986,-762.33,0.00043835,45]
[327578932,1716241851996,-762.33,0.00043835,46]
[327578933,1716241852006,-762.33,0.00043835,47]
[327578934,1716241852015,-762.33,0.00043835,48]
[327578935,1716241852025,-762.33,0.00043835,49]
[327578936,1716241852035,-762.33,0.00043835,50]
[327578937,1716241852043,-762.33,0.00043835,51]
[327578938,1716241852053,-762.33,0.00043835,52]
[327578939,1716241852169,-762.33,0.00043835,53]
[327578940,1716241852179,-506.78617303,0.00043835,40]
[327578941,1716241852188,-762.33,0.00043835,54]
[327578942,1716241852197,-762.33,0.00043835,55]
[327578943,1716241852207,-762.33,0.00043835,56]
[327578944,1716241852216,-762.33,0.00043835,57]
[327578945,1716241852227,-762.33,0.00043835,58]
[327578946,1716241852236,-762.33,0.00043835,59]
[327578947,1716241852245,-762.33,0.00043835,59]
[327578948,1716241852255,-762.33,0.00043835,59]
[327578949,1716241852264,-762.33,0.00043835,59]
[327578950,1716241852274,-762.49,0.00043835,59]
[327578951,1716241852283,-283.51327077,0.00043835,40]
[327578952,1716241852292,-500.0,0.00043835,40]
[327578953,1716241852302,-500.0,0.00043835,120]
[327578954,1716241852311,-154.81422293,0.00043835,40]
[327578955,1716241852321,-500.0,0.00043835,40]
[327578956,1716241852330,-500.0,0.00043835,40]
[327578957,1716241852339,-517.76991674,0.00043835,40]
[327578958,1716241852348,-500.0,0.00043835,14]
[327578959,1716241852358,-862.18,0.00043835,40]
[327578960,1716241852367,-919.14,0.00043835,40]
[327578961,1716241852377,-3663.22,0.00043835,30]
[327578962,1716241852386,-500.0,0.00043835,40]
[327578963,1716241852396,-500.0,0.00043835,40]
[327578964,1716241852405,-592.27,0.00043835,40]
[327578965,1716241852414,-1231.25,0.00043835,40]
[327578966,1716241852424,-302.25202281,0.00043835,40]
[327578967,1716241852433,-4445.0,0.00043835,40]
[327578968,1716241852442,-501.65938246,0.00043835,40]
[327578969,1716241852451,-503.61325526,0.00043835,40]
[327578970,1716241852460,-500.0,0.00043835,40]
[327578971,1716241852470,-501.56950154,0.00043835,40]
[327578972,1716241852480,-500.0,0.00043835,40]
[327578973,1716241852489,-500.0,0.00043835,40]
[327578974,1716241852499,-500.0,0.00043835,40]
[327578975,1716241852508,-2889.45,0.00043835,40]
[327578976,1716241852517,-504.44198053,0.00043835,40]
[327578977,1716241852527,-500.0,0.00043835,40]
[327578978,1716241852536,-500.0,0.00043835,40]
[327578979,1716241852545,-500.0,0.00043835,40]
[327578980,1716241852554,-500.0,0.00043835,40]
[327578981,1716241852563,-500.0,0.00043835,40]
[327578982,1716241852572,-1374.65,0.00043835,40]
[327578983,1716241852582,-502.22370643,0.00043835,40]
[327578984,1716241852591,-500.0,0.00043835,40]
[327578985,1716241852601,-500.0,0.00043835,40]
[327578986,1716241852610,-504.81661055,0.00043835,40]
[327578987,1716241852620,-506.75129477,0.00043835,40]
[327578988,1716241852629,-185.56645546,0.00043835,40]
[327578989,1716241852638,-859.19,0.00043835,40]
[327578990,1716241852649,-500.0,0.00043835,40]
[327578991,1716241852661,-2739.92,0.00043835,40]
[327578992,1716241852670,-2697.96,0.00043835,40]
[327578993,1716241852679,-4281.6,0.00043835,40]
[327578994,1716241852688,-500.0,0.00043835,40]
[327578995,1716241852698,-500.0,0.00043835,40]
[327578996,1716241852708,-880.65,0.00043835,40]
[327578997,1716241852717,-500.0,0.00043835,40]
[327578998,1716241852728,-500.0,0.00043835,40]
[327578999,1716241852739,-1442.32,0.00043835,40]
[327579000,1716241852748,-885.43,0.00043835,40]
[327579001,1716241852758,-500.0,0.00043835,40]
[327579002,1716241852768,-500.0,0.00043835,40]
[327579003,1716241852777,-1456.69,0.00043835,40]
[327579004,1716241852788,-500.0,0.00043835,40]
[327579005,1716241852797,-172.66581937,0.00043835,40]
[327579006,1716241852807,-500.0,0.00043835,40]
[327579007,1716241852819,-500.0,0.00043835,40]
[327579008,1716241852830,-500.0,0.00043835,40]
[327579009,1716241852840,-526.69,0.00043835,40]
[327579010,1716241852850,-649.35239315,0.00043835,7]
[327579011,1716241852859,-433.03104651,0.00043835,40]
[327579012,1716241852869,-500.0,0.00043835,40]
[327579013,1716241852878,-500.0,0.00043835,40]
[327579014,1716241852887,-500.0,0.00043835,40]
[327579015,1716241852896,-1202.62,0.00043835,40]
[327579016,1716241852906,-500.0,0.00043835,40]
[327579017,1716241852915,-812.21,0.00043835,40]
[327579018,1716241852924,-436.33124635,0.00043835,40]
[327579019,1716241852933,-2605.23,0.00043835,40]
[327579020,1716241852942,-500.0,0.00043835,2]
[327579021,1716241852951,-500.0,0.00043835,40]
[327579022,1716241852960,-500.0,0.00043835,40]
[327579023,1716241852971,-248.12785161,0.00043835,40]
[327579024,1716241852979,-500.0,0.00043835,2]
[327579025,1716241852988,-1026.33,0.00043835,40]
[327579026,1716241852997,-500.0,0.00043835,40]
[327579027,1716241853007,-1010.65,0.00043835,7]
[327579028,1716241853016,-1639.53,0.00043835,40]
[327579029,1716241853026,-14939.18,0.00043835,40]
[327579030,1716241853035,-357.10576819,0.00043835,40]
[327579031,1716241853044,-500.0,0.00043835,40]
[327579032,1716241853053,-500.0,0.00043835,40]
[327579033,1716241853062,-500.0,0.00043835,40]
[327579034,1716241853071,-500.0,0.00043835,40]
[327579035,1716241853080,-500.0,0.00043835,40]
[327579036,1716241853089,-500.0,0.00043835,40]
[327579037,1716241853098,-500.0,0.00043835,40]
[327579038,1716241853107,-987.54,0.00043835,40]
[327579039,1716241853117,-6117.06,0.00043835,40]
[327579040,1716241853126,-500.0,0.00043835,40]
[327579041,1716241853135,-500.0,0.00043835,40]
[327579042,1716241853144,-526.36813748,0.00043835,40]
[327579043,1716241853153,-639.55,0.00043835,40]
[327579044,1716241853162,-500.0,0.00043835,40]
[327579045,1716241853171,-500.0,0.00043835,40]
[327579046,1716241853180,-500.0,0.00043835,40]
[327579047,1716241853189,-500.0,0.00043835,40]
[327579048,1716241853199,-500.0,0.00043835,40]
[327579049,1716241853208,-500.0,0.00043835,40]
[327579050,1716241853217,-1385.37,0.00043835,40]
[327579051,1716241853227,-500.0,0.00043835,40]
[327579052,1716241853236,-1442.57,0.00043835,40]
[327579053,1716241853246,-5927.47,0.00043835,40]
[327579054,1716241853256,-500.0,0.00043835,40]
[327579055,1716241853266,-583.3,0.00043835,40]
[327579056,1716241853275,-500.0,0.00043835,40]
[327579057,1716241853284,-500.0,0.00043835,40]
[327579058,1716241853294,-500.0,0.00043835,40]
[327579059,1716241853303,-500.0,0.00043835,40]
[327579060,1716241853312,-503.45139742,0.00043835,40]
[327579061,1716241853321,-500.0,0.00043835,40]
[327579062,1716241853330,-500.0,0.00043835,40]
[327579063,1716241853340,-500.0,0.00043835,40]
[327579064,1716241853349,-1071.19,0.00043835,40]
[327579065,1716241853358,-500.0,0.00043835,40]
[327579066,1716241853367,-652.46,0.00043835,40]
[327579067,1716241853376,-500.0,0.00043835,40]
[327579068,1716241853385,-6006.54,0.00043835,21]
[327579069,1716241853395,-919.99,0.00043835,40]
[327579070,1716241853403,-1363.38,0.00043835,40]
[327579071,1716241853413,-642.43,0.00043835,40]
[327579072,1716241853422,-537.78,0.00043835,40]
[327579073,1716241853432,-500.0,0.00043835,40]
[327579074,1716241853441,-1118.54,0.00043835,40]
[327579075,1716241853450,-500.0,0.00043835,40]
[327579076,1716241853459,-500.0,0.00043835,2]
[327579077,1716241853469,-500.0,0.00043835,40]
[327579078,1716241853479,-505.30489645,0.00043835,40]
[327579079,1716241853488,-500.0,0.00043835,40]
[327579080,1716241853497,-2417.3,0.00043835,40]
[327579081,1716241853506,-737.4,0.00043835,40]
[327579082,1716241853515,-1466.93,0.00043835,40]
[327579083,1716241853524,-6935.76,0.00043835,40]
[327579084,1716241853533,-739.52,0.00043835,40]
[327579085,1716241853542,-1798.81,0.00043835,40]
[327579086,1716241853551,-500.0,0.00043835,40]
[327579087,1716241853561,-500.0,0.00043835,40]
[327579088,1716241853570,-500.0,0.00043835,40]
[327579089,1716241853579,-500.0,0.00043835,40]
[327579090,1716241853588,-500.0,0.00043835,40]
[327579091,1716241853598,-861.11,0.00043835,40]
[327579092,1716241853607,-500.0,0.00043835,40]
[327579093,1716241853616,-709.71,0.00043835,40]
[327579094,1716241853626,-609.77,0.00043835,40]
[327579095,1716241853634,-596.39,0.00043835,40]
[327579096,1716241853644,-576.85,0.00043835,40]
[327579097,1716241853655,-619.07,0.00043835,40]
[327579098,1716241853664,-1225.23,0.00043835,40]
[327579099,1716241853678,-500.0,0.00043835,40]
[327579100,1716241853688,-818.46,0.00043835,40]
[327579101,1716241853699,-500.0,0.00043835,40]
[327579102,1716241853708,-562.67,0.00043835,40]
[327579103,1716241853717,-766.18,0.00043835,40]
[327579104,1716241853728,-3494.58,0.00043835,7]
[327579105,1716241853736,-657.15,0.00043835,40]
[327579106,1716241853746,-936.51,0.00043835,40]
[327579107,1716241853755,-1098.88,0.00043835,40]
[327579108,1716241853765,-1799.05,0.00043835,40]
[327579109,1716241853774,-1062.65,0.00043835,40]
[327579110,1716241853783,-500.0,0.00043835,40]
[327579111,1716241853792,-500.0,0.00043835,40]
[327579112,1716241853801,-4131.94,0.00043835,40]
[327579113,1716241853811,-1275.25,0.00043835,40]
[327579114,1716241853820,-500.0,0.00043835,40]
[327579115,1716241853829,-500.0,0.00043835,40]
[327579116,1716241853838,-500.0,0.00043835,40]
[327579117,1716241853848,-500.0,0.00043835,40]
[327579118,1716241853857,-500.0,0.00043835,40]
[327579119,1716241853867,-500.0,0.00043835,40]
[327579120,1716241853876,-500.0,0.00043835,40]
[327579121,1716241853885,-500.0,0.00043835,40]
[327579122,1716241853895,-183.22305628,0.00043835,40]
[327579123,1716241853904,-774.91,0.00043835,40]
[327579124,1716241853913,-26001.31,0.00043835,40]
[327579125,1716241853923,-500.0,0.00043835,40]
[327579126,1716241853932,-500.0,0.00043835,40]
[327579127,1716241853942,-500.0,0.00043835,40]
[327579128,1716241853951,-1782.71,0.00043835,40]
[327579129,1716241853960,-1141.85,0.00043835,40]
[327579130,1716241853971,-500.0,0.00043835,40]
[327579131,1716241853980,-500.0,0.00043835,40]
[327579132,1716241853989,-511.54,0.00043835,40]
[327579133,1716241853999,-500.0,0.00043835,40]
[327579134,1716241854008,-500.0,0.00043835,40]
[327579135,1716241854018,-500.0,0.00043835,40]
[327579136,1716241854027,-156.97974906,0.00043835,40]
[327579137,1716241854037,-500.0,0.00043835,40]
[327579138,1716241854047,-500.0,0.00043835,40]
[327579139,1716241854056,-841.83,0.00043835,40]
[327579140,1716241854066,-267.73575787,0.00043835,40]
[327579141,1716241854075,-500.0,0.00043835,40]
[327579142,1716241854085,-500.0,0.00043835,40]
[327579143,1716241854095,-500.0,0.00043835,40]
[327579144,1716241854105,-505.19475979,0.00043835,40]
[327579145,1716241854115,-500.0,0.00043835,40]
[327579146,1716241854124,-816.82,0.00043835,40]
[327579147,1716241854134,-930.54,0.00043835,40]
[327579148,1716241854143,-1163.36,0.00043835,40]
[327579149,1716241854153,-1210.32,0.00043835,40]
[327579150,1716241854162,-500.0,0.00043835,40]
[327579151,1716241854171,-634.94,0.00043835,40]
[327579152,1716241854180,-500.0,0.00043835,40]
[327579153,1716241854190,-619.3281926,0.00043835,40]
[327579154,1716241854199,-1200.25,0.00043835,40]
[327579155,1716241854208,-500.0,0.00043835,40]
[327579156,1716241854219,-500.0,0.00043835,40]
[327579157,1716241854230,-533.17,0.00043835,40]
[327579158,1716241854240,-600.29035964,0.00043835,40]
[327579159,1716241854250,-500.0,0.00043835,40]
[327579160,1716241854259,-500.0,0.00043835,40]
[327579161,1716241854269,-500.0,0.00043835,40]
[327579162,1716241854278,-1207.2,0.00043835,40]
[327579163,1716241854288,-500.0,0.00043835,2]
[327579164,1716241854298,-2252.15623822,0.00043939,3]
[327579165,1716241854399,-160.0,0.000441,29]
[327579166,1716241854426,-500.0,0.00044109,41]
[327579167,1716241854435,-500.0,0.00044109,41]
[327579168,1716241854446,-322.00160382,0.00044109,41]
[327579169,1716241854456,-500.0,0.00044109,41]
[327579170,1716241854466,-500.0,0.00044109,41]
[327579171,1716241854478,-500.0,0.00044109,41]
[327579172,1716241854487,-754.94,0.00044109,41]
[327579173,1716241854497,-500.0,0.00044109,41]
[327579174,1716241854507,-500.0,0.00044109,41]
[327579175,1716241854516,-300.0,0.00044109,7]
[327579176,1716241854526,-500.0,0.00044109,41]
[327579177,1716241854535,-500.0,0.00044109,41]
[327579178,1716241854544,-500.0,0.00044109,41]
[327579179,1716241854554,-500.0,0.00044109,41]
[327579180,1716241854563,-280.07980987,0.00044109,41]
[327579181,1716241854573,-500.0,0.00044109,41]
[327579182,1716241854583,-507.81596062,0.00044109,41]
[327579183,1716241854592,-595.32416715,0.00044109,41]
[327579184,1716241854602,-500.0,0.00044109,41]
[327579185,1716241854612,-500.0,0.00044109,41]
[327579186,1716241854621,-500.0,0.00044109,41]
[327579187,1716241854631,-500.0,0.00044109,41]
[327579188,1716241854641,-500.0,0.00044109,41]
[327579189,1716241854655,-500.0,0.00044109,41]
[327579190,1716241854665,-912.8,0.00044109,41]
[327579191,1716241854674,-496.71962602,0.00044109,41]
[327579192,1716241854683,-611.49,0.00044109,41]
[327579193,1716241854693,-500.0,0.00044109,41]
[327579194,1716241854703,-500.0,0.00044109,41]
[327579195,1716241854713,-500.0,0.00044109,41]
[327579196,1716241854724,-500.0,0.00044109,41]
[327579197,1716241854736,-500.0,0.00044109,41]
[327579198,1716241854745,-581.91,0.00044109,41]
[327579199,1716241854754,-500.0,0.00044109,41]
[327579200,1716241854764,-167.19232066,0.00044109,7]
[327579201,1716241854774,-500.0,0.00044109,41]
[327579202,1716241854783,-500.0,0.00044109,41]
[327579203,1716241854794,-500.0,0.00044109,41]
[327579204,1716241854804,-603.10771606,0.00044109,41]
[327579205,1716241854814,-500.0,0.00044109,41]
[327579206,1716241854824,-500.0,0.00044109,41]
[327579207,1716241854834,-500.0,0.00044109,41]
[327579208,1716241854844,-500.0,0.00044109,41]
[327579209,1716241854854,-500.0,0.00044109,41]
[327579210,1716241854863,-614.28635685,0.00044109,41]
[327579211,1716241854872,-843.14,0.00044109,41]
[327579212,1716241854882,-500.0,0.00044109,41]
[327579213,1716241854891,-751.44,0.00044109,41]
[327579214,1716241854900,-500.0,0.00044109,41]
[327579215,1716241854909,-500.0,0.00044109,41]
[327579216,1716241854918,-500.0,0.00044109,41]
[327579217,1716241854928,-500.0,0.00044109,41]
[327579218,1716241854938,-500.0,0.00044109,41]
[327579219,1716241854948,-500.0,0.00044109,41]
[327579220,1716241854958,-500.0,0.00044109,41]
[327579221,1716241854967,-730.64,0.00044109,41]
[327579222,1716241854978,-500.0,0.00044109,41]
[327579223,1716241854987,-504.06,0.00044109,41]
[327579224,1716241854997,-500.0,0.00044109,41]
[327579225,1716241855006,-500.0,0.00044109,41]
[327579226,1716241855016,-500.0,0.00044109,41]
[327579227,1716241855026,-500.0,0.00044109,41]
[327579228,1716241855036,-578.30414374,0.00044109,41]
[327579229,1716241855045,-500.0,0.00044109,41]
[327579230,1716241855054,-500.0,0.00044109,41]
[327579231,1716241855064,-500.0,0.00044109,41]
[327579232,1716241855074,-500.0,0.00044109,41]
[327579233,1716241855083,-500.0,0.00044109,41]
[327579234,1716241855093,-503.72456253,0.00044109,41]
[327579235,1716241855102,-1024.27,0.00044109,41]
[327579236,1716241855112,-500.0,0.00044109,41]
[327579237,1716241855121,-500.0,0.00044109,41]
[327579238,1716241855131,-500.0,0.00044109,41]
[327579239,1716241855140,-676.05,0.00044109,41]
[327579240,1716241855150,-500.0,0.00044109,41]
[327579241,1716241855159,-500.0,0.00044109,41]
[327579242,1716241855170,-509.39,0.00044109,41]
[327579243,1716241855179,-500.0,0.00044109,41]
[327579244,1716241855190,-500.0,0.00044109,41]
[327579245,1716241855201,-603.06,0.00044109,41]
[327579246,1716241855212,-455.52782498,0.00044109,41]
[327579247,1716241855222,-500.0,0.00044109,41]
[327579248,1716241855233,-500.0,0.00044109,41]
[327579249,1716241855243,-500.0,0.00044109,41]
[327579250,1716241855252,-500.0,0.00044109,41]
[327579251,1716241855262,-1565.75,0.00044109,41]
[327579252,1716241855271,-500.0,0.00044109,41]
[327579253,1716241855280,-226.59987774,0.00044109,41]
[327579254,1716241855290,-500.0,0.00044109,41]
[327579255,1716241855300,-500.0,0.00044109,41]
[327579256,1716241855310,-502.99509287,0.00044109,41]
[327579257,1716241855319,-500.0,0.00044109,41]
[327579258,1716241855329,-500.0,0.00044109,41]
[327579259,1716241855338,-500.0,0.00044109,41]
[327579260,1716241855348,-572.18323163,0.00044109,41]
[327579261,1716241855357,-500.0,0.00044109,41]
[327579262,1716241855366,-229.28273307,0.00044109,41]